[Event "Titled Tuesday Blitz May 18 2021"]
[White "Gunina, Valentina"]
[Black "Alekseenko, Kirill"]
[WhiteFideId "4167570"]
[BlackFideId "4135539"]
[WhiteElo "2399"]
[BlackElo "2580"]
[Result "0-1"]
[Round "08"]
[TimeControl "180+1"]
[Date "2021.05.18"]
[WhiteClock "0:00:03"]
[BlackClock "0:00:09"]

1. d4 {[%clk 0:03:00]}  d5 {[%clk 0:02:54]} 2. c4 {[%clk 0:03:01]}  dxc4 {[%clk 0:02:55]} 3. e3 {[%clk 0:03:00]}  e5 {[%clk 0:02:55]} 4. Bxc4 {[%clk 0:03:00]}  Nc6 {[%clk 0:02:56]} 5. Nf3 {[%clk 0:02:59]}  e4 {[%clk 0:02:56]} 6. Nfd2 {[%clk 0:02:58]}  Qg5 {[%clk 0:02:57]} 7. g3 {[%clk 0:02:43]}  Nf6 {[%clk 0:02:56]} 8. Nc3 {[%clk 0:02:43]}  Qg6 {[%clk 0:02:56]} 9. Qb3 {[%clk 0:02:38]}  Bd6 {[%clk 0:02:46]} 10. Nd5 {[%clk 0:02:38]}  Nxd5 {[%clk 0:02:40]} 11. Bxd5 {[%clk 0:02:38]}  f5 {[%clk 0:02:36]} 12. O-O {[%clk 0:02:31]}  h5 {[%clk 0:02:31]} 13. Nc4 {[%clk 0:02:25]}  h4 {[%clk 0:02:27]} 14. Nxd6+ {[%clk 0:02:25]}  cxd6 {[%clk 0:02:28]} 15. Bd2 {[%clk 0:02:25]}  Qh5 {[%clk 0:02:14]} 16. Qd1 {[%clk 0:02:00]}  Qh6 {[%clk 0:02:15]} 17. Qe2 {[%clk 0:02:00]}  Be6 {[%clk 0:02:15]} 18. Bxe6 {[%clk 0:01:44]}  Qxe6 {[%clk 0:02:16]} 19. Qb5 {[%clk 0:01:44]}  d5 {[%clk 0:02:08]} 20. Rac1 {[%clk 0:01:36]}  O-O-O {[%clk 0:02:03]} 21. Rc2 {[%clk 0:01:24]}  Rh6 {[%clk 0:01:52]} 22. Rfc1 {[%clk 0:01:21]}  Rdh8 {[%clk 0:01:48]} 23. Ba5 {[%clk 0:01:16]}  Qd7 {[%clk 0:01:36]} 24. Rc5 {[%clk 0:01:11]}  hxg3 {[%clk 0:01:36]} 25. fxg3 {[%clk 0:01:10]}  g5 {[%clk 0:01:17]} 26. Rxd5 {[%clk 0:01:10]}  Rxh2 {[%clk 0:01:14]} 27. g4 {[%clk 0:00:28]}  Rh1+ {[%clk 0:01:06]} 28. Kg2 {[%clk 0:00:28]}  R8h2+ {[%clk 0:01:03]} 29. Kg3 {[%clk 0:00:28]}  f4+ {[%clk 0:01:03]} 30. exf4 {[%clk 0:00:28]}  Rh3+ {[%clk 0:01:01]} 31. Kf2 {[%clk 0:00:26]}  Rf3+ {[%clk 0:00:57]} 32. Ke2 {[%clk 0:00:23]}  Rh2+ {[%clk 0:00:57]} 33. Kd1 {[%clk 0:00:21]}  Rf1+ {[%clk 0:00:55]} 34. Qxf1 {[%clk 0:00:14]}  Qxg4+ {[%clk 0:00:56]} 35. Ke1 {[%clk 0:00:13]}  Qg3+ {[%clk 0:00:40]} 36. Kd1 {[%clk 0:00:13]}  Qg4+ {[%clk 0:00:27]} 37. Ke1 {[%clk 0:00:13]}  b6 {[%clk 0:00:18]} 38. Rxc6+ {[%clk 0:00:10]}  Kb7 {[%clk 0:00:18]} 39. Rc3 {[%clk 0:00:06]}  Qh4+ {[%clk 0:00:18]} 40. Kd1 {[%clk 0:00:06]}  Rh1 {[%clk 0:00:19]} 41. Qxh1 {[%clk 0:00:06]}  Qxh1+ {[%clk 0:00:19]} 42. Kc2 {[%clk 0:00:06]}  e3 {[%clk 0:00:10]} 43. Rd7+ {[%clk 0:00:06]}  Ka6 {[%clk 0:00:10]} 44. Bb4 {[%clk 0:00:05]}  Qe4+ {[%clk 0:00:10]} 45. Kb3 {[%clk 0:00:05]}  Qe6+ {[%clk 0:00:10]} 46. d5 {[%clk 0:00:04]}  Qxd7 {[%clk 0:00:10]} 47. Rxe3 {[%clk 0:00:05]}  Qxd5+ {[%clk 0:00:11]} 48. Ka3 {[%clk 0:00:05]}  gxf4 {[%clk 0:00:10]} 49. Rc3 {[%clk 0:00:05]}  f3 {[%clk 0:00:10]} 50. Rc7 {[%clk 0:00:03]}  f2 {[%clk 0:00:09]} 0-1


[Site "https://www.chess.com"]

[Event "Titled Tuesday Blitz May 18 2021"]
[White "Ivanisevic, Ivan"]
[Black "Bortnyk, Olexandr"]
[WhiteFideId "912417"]
[BlackFideId "14120828"]
[WhiteElo "2499"]
[BlackElo "2723"]
[Result "0-1"]
[Round "08"]
[TimeControl "180+1"]
[Date "2021.05.18"]
[WhiteClock "0:00:01"]
[BlackClock "0:00:02"]

1. d4 {[%clk 0:03:00]}  d6 {[%clk 0:02:57]} 2. e4 {[%clk 0:02:58]}  Nf6 {[%clk 0:02:56]} 3. Nc3 {[%clk 0:02:58]}  Nbd7 {[%clk 0:02:56]} 4. Nf3 {[%clk 0:02:58]}  e5 {[%clk 0:02:55]} 5. Bc4 {[%clk 0:02:58]}  Be7 {[%clk 0:02:55]} 6. a4 {[%clk 0:02:59]}  O-O {[%clk 0:02:54]} 7. O-O {[%clk 0:02:59]}  a6 {[%clk 0:02:54]} 8. Re1 {[%clk 0:02:57]}  b6 {[%clk 0:02:52]} 9. Nd5 {[%clk 0:02:58]}  Nxd5 {[%clk 0:02:51]} 10. Bxd5 {[%clk 0:02:54]}  Rb8 {[%clk 0:02:45]} 11. c3 {[%clk 0:02:50]}  Bf6 {[%clk 0:02:43]} 12. h3 {[%clk 0:02:45]}  Bb7 {[%clk 0:02:42]} 13. Bxb7 {[%clk 0:02:42]}  Rxb7 {[%clk 0:02:43]} 14. dxe5 {[%clk 0:02:13]}  dxe5 {[%clk 0:02:39]} 15. Qd5 {[%clk 0:02:12]}  Nc5 {[%clk 0:02:34]} 16. Be3 {[%clk 0:02:08]}  Qxd5 {[%clk 0:02:33]} 17. exd5 {[%clk 0:02:09]}  Nd3 {[%clk 0:02:31]} 18. Re2 {[%clk 0:02:06]}  Rd8 {[%clk 0:02:28]} 19. c4 {[%clk 0:01:58]}  b5 {[%clk 0:02:24]} 20. axb5 {[%clk 0:01:57]}  axb5 {[%clk 0:02:24]} 21. b3 {[%clk 0:01:33]}  e4 {[%clk 0:02:10]} 22. Nd4 {[%clk 0:01:32]}  bxc4 {[%clk 0:01:53]} 23. bxc4 {[%clk 0:01:32]}  h5 {[%clk 0:01:16]} 24. Rea2 {[%clk 0:01:17]}  c5 {[%clk 0:00:13]} 25. dxc6 {[%clk 0:01:10]}  Rc7 {[%clk 0:00:13]} 26. Ra8 {[%clk 0:01:07]}  Rxa8 {[%clk 0:00:13]} 27. Rxa8+ {[%clk 0:01:05]}  Kh7 {[%clk 0:00:13]} 28. Nb3 {[%clk 0:00:40]}  Rxc6 {[%clk 0:00:13]} 29. c5 {[%clk 0:00:40]}  Bc3 {[%clk 0:00:12]} 30. Ra7 {[%clk 0:00:37]}  f5 {[%clk 0:00:11]} 31. g3 {[%clk 0:00:31]}  Kg6 {[%clk 0:00:08]} 32. h4 {[%clk 0:00:30]}  Kf6 {[%clk 0:00:08]} 33. Rd7 {[%clk 0:00:17]}  g6 {[%clk 0:00:07]} 34. Bg5+ {[%clk 0:00:03]}  Ke6 {[%clk 0:00:07]} 35. Re7+ {[%clk 0:00:03]}  Kd5 {[%clk 0:00:08]} 36. Rg7 {[%clk 0:00:03]}  Kc4 {[%clk 0:00:08]} 37. Rb7 {[%clk 0:00:03]}  Nxc5 {[%clk 0:00:05]} 38. Nxc5 {[%clk 0:00:02]}  Kxc5 {[%clk 0:00:06]} 39. Be3+ {[%clk 0:00:02]}  Kd5 {[%clk 0:00:06]} 40. Kg2 {[%clk 0:00:03]}  Be5 {[%clk 0:00:06]} 41. Rb5+ {[%clk 0:00:03]}  Ke6 {[%clk 0:00:06]} 42. Rb7 {[%clk 0:00:03]}  Bf6 {[%clk 0:00:06]} 43. Rb5 {[%clk 0:00:04]}  Be7 {[%clk 0:00:05]} 44. Ra5 {[%clk 0:00:04]}  Bb4 {[%clk 0:00:05]} 45. Rb5 {[%clk 0:00:04]}  Bc3 {[%clk 0:00:05]} 46. Rb3 {[%clk 0:00:04]}  Kd5 {[%clk 0:00:05]} 47. Rb5+ {[%clk 0:00:04]}  Kc4 {[%clk 0:00:05]} 48. Rb1 {[%clk 0:00:04]}  Kd3 {[%clk 0:00:06]} 49. Rd1+ {[%clk 0:00:04]}  Ke2 {[%clk 0:00:06]} 50. Rc1 {[%clk 0:00:05]}  Kd3 {[%clk 0:00:07]} 51. Rd1+ {[%clk 0:00:05]}  Kc4 {[%clk 0:00:07]} 52. Rc1 {[%clk 0:00:05]}  Rd6 {[%clk 0:00:08]} 53. Rc2 {[%clk 0:00:04]}  Kb3 {[%clk 0:00:06]} 54. Rc1 {[%clk 0:00:04]}  Ra6 {[%clk 0:00:04]} 55. Rb1+ {[%clk 0:00:04]}  Kc2 {[%clk 0:00:03]} 56. Rb7 {[%clk 0:00:04]}  Kd3 {[%clk 0:00:02]} 57. Rd7+ {[%clk 0:00:04]}  Ke2 {[%clk 0:00:02]} 58. Rc7 {[%clk 0:00:05]}  Be1 {[%clk 0:00:02]} 59. Rc2+ {[%clk 0:00:05]}  Kd3 {[%clk 0:00:03]} 60. Rc1 {[%clk 0:00:05]}  Bb4 {[%clk 0:00:04]} 61. Rd1+ {[%clk 0:00:05]}  Kc2 {[%clk 0:00:04]} 62. Rc1+ {[%clk 0:00:05]}  Kb2 {[%clk 0:00:04]} 63. Rc4 {[%clk 0:00:05]}  Kb3 {[%clk 0:00:05]} 64. Rc7 {[%clk 0:00:04]}  Rd6 {[%clk 0:00:03]} 65. Rb7 {[%clk 0:00:04]}  Kc4 {[%clk 0:00:04]} 66. Rc7+ {[%clk 0:00:04]}  Kd3 {[%clk 0:00:04]} 67. Rb7 {[%clk 0:00:04]}  Bc3 {[%clk 0:00:04]} 68. Rb3 {[%clk 0:00:03]}  Kc2 {[%clk 0:00:04]} 69. Rb7 {[%clk 0:00:04]}  Bd2 {[%clk 0:00:03]} 70. Rc7+ {[%clk 0:00:04]}  Kd1 {[%clk 0:00:03]} 71. Bc5 {[%clk 0:00:04]}  Rd5 {[%clk 0:00:02]} 72. Bb6 {[%clk 0:00:03]}  Ke2 {[%clk 0:00:02]} 73. Re7 {[%clk 0:00:03]}  Rb5 {[%clk 0:00:02]} 74. Ba7 {[%clk 0:00:03]}  Rb2 {[%clk 0:00:03]} 75. Re6 {[%clk 0:00:03]}  Ra2 {[%clk 0:00:03]} 76. Bc5 {[%clk 0:00:01]}  Rc2 {[%clk 0:00:02]} 77. Bd4 {[%clk 0:00:01]}  Ke1 {[%clk 0:00:02]} 0-1


[Site "https://www.chess.com"]

[Event "Titled Tuesday Blitz May 18 2021"]
[White "Jobava, Baadur"]
[Black "Artemiev, Vladislav"]
[WhiteFideId "13601520"]
[BlackFideId "24101605"]
[WhiteElo "2748"]
[BlackElo "2783"]
[Result "0-1"]
[Round "08"]
[TimeControl "180+1"]
[Date "2021.05.18"]
[WhiteClock "0:00:01"]
[BlackClock "0:00:11"]

1. d4 {[%clk 0:03:00]}  d5 {[%clk 0:02:59]} 2. c4 {[%clk 0:03:00]}  c6 {[%clk 0:02:59]} 3. Nf3 {[%clk 0:02:59]}  Nf6 {[%clk 0:02:59]} 4. Nc3 {[%clk 0:02:59]}  e6 {[%clk 0:03:00]} 5. Bg5 {[%clk 0:02:57]}  Nbd7 {[%clk 0:02:59]} 6. cxd5 {[%clk 0:02:56]}  exd5 {[%clk 0:02:59]} 7. e3 {[%clk 0:02:56]}  Be7 {[%clk 0:02:58]} 8. Qc2 {[%clk 0:02:56]}  Nh5 {[%clk 0:02:57]} 9. h4 {[%clk 0:02:40]}  h6 {[%clk 0:02:30]} 10. Bf4 {[%clk 0:02:40]}  Nxf4 {[%clk 0:02:28]} 11. exf4 {[%clk 0:02:40]}  O-O {[%clk 0:02:07]} 12. Bd3 {[%clk 0:02:33]}  Bd6 {[%clk 0:02:05]} 13. g3 {[%clk 0:02:32]}  Re8+ {[%clk 0:02:05]} 14. Kf1 {[%clk 0:02:31]}  c5 {[%clk 0:01:57]} 15. Nb5 {[%clk 0:02:07]}  Qb6 {[%clk 0:01:34]} 16. Kg2 {[%clk 0:02:07]}  c4 {[%clk 0:01:26]} 17. Bh7+ {[%clk 0:02:06]}  Kf8 {[%clk 0:01:25]} 18. Nc3 {[%clk 0:01:42]}  Nf6 {[%clk 0:01:25]} 19. Rhe1 {[%clk 0:01:41]}  Be6 {[%clk 0:01:01]} 20. Rab1 {[%clk 0:01:31]}  Bb4 {[%clk 0:00:44]} 21. a3 {[%clk 0:01:25]}  Bxc3 {[%clk 0:00:44]} 22. bxc3 {[%clk 0:01:25]}  Qc7 {[%clk 0:00:45]} 23. Ne5 {[%clk 0:01:20]}  b6 {[%clk 0:00:28]} 24. Re2 {[%clk 0:01:13]}  g6 {[%clk 0:00:12]} 25. Bxg6 {[%clk 0:00:10]}  fxg6 {[%clk 0:00:13]} 26. Nxg6+ {[%clk 0:00:10]}  Kg7 {[%clk 0:00:13]} 27. Rbe1 {[%clk 0:00:09]}  Qd7 {[%clk 0:00:13]} 28. Ne5 {[%clk 0:00:08]}  Bh3+ {[%clk 0:00:13]} 29. Kh2 {[%clk 0:00:08]}  Ng4+ {[%clk 0:00:12]} 30. Nxg4 {[%clk 0:00:03]}  Bxg4 {[%clk 0:00:10]} 31. Re5 {[%clk 0:00:01]}  Rxe5 {[%clk 0:00:11]} 32. Rxe5 {[%clk 0:00:01]}  Re8 {[%clk 0:00:11]} 0-1


[Site "https://www.chess.com"]

[Event "Titled Tuesday Blitz May 18 2021"]
[White "Remizov, Yaroslav"]
[Black "Sanal, Vahap"]
[WhiteFideId "34134015"]
[BlackFideId "6300545"]
[WhiteElo "2367"]
[BlackElo "2507"]
[Result "0-1"]
[Round "08"]
[TimeControl "180+1"]
[Date "2021.05.18"]
[WhiteClock "0:00:06"]
[BlackClock "0:00:25"]

1. e4 {[%clk 0:03:00]}  d6 {[%clk 0:02:57]} 2. d4 {[%clk 0:03:00]}  Nf6 {[%clk 0:02:57]} 3. Nc3 {[%clk 0:03:00]}  e5 {[%clk 0:02:57]} 4. Nf3 {[%clk 0:03:00]}  Nbd7 {[%clk 0:02:57]} 5. g4 {[%clk 0:02:59]}  d5 {[%clk 0:02:57]} 6. dxe5 {[%clk 0:02:52]}  Nxe4 {[%clk 0:02:56]} 7. Nxd5 {[%clk 0:02:51]}  c6 {[%clk 0:02:50]} 8. Ne3 {[%clk 0:02:50]}  Qa5+ {[%clk 0:02:46]} 9. Bd2 {[%clk 0:02:46]}  Qc7 {[%clk 0:02:35]} 10. Nf5 {[%clk 0:02:12]}  Nxd2 {[%clk 0:02:24]} 11. Qxd2 {[%clk 0:02:10]}  Nxe5 {[%clk 0:02:20]} 12. Qe3 {[%clk 0:01:54]}  Bxf5 {[%clk 0:02:12]} 13. gxf5 {[%clk 0:01:41]}  Bd6 {[%clk 0:01:58]} 14. Nxe5 {[%clk 0:01:39]}  O-O-O {[%clk 0:01:54]} 15. f4 {[%clk 0:01:17]}  f6 {[%clk 0:01:52]} 16. Qxa7 {[%clk 0:01:16]}  Bxe5 {[%clk 0:01:32]} 17. fxe5 {[%clk 0:00:50]}  Qxe5+ {[%clk 0:01:32]} 18. Be2 {[%clk 0:00:50]}  Rhe8 {[%clk 0:01:31]} 19. Qf2 {[%clk 0:00:48]}  Qxb2 {[%clk 0:01:21]} 20. O-O {[%clk 0:00:47]}  Rd2 {[%clk 0:01:21]} 21. Rae1 {[%clk 0:00:25]}  Qxc2 {[%clk 0:01:19]} 22. Bd3 {[%clk 0:00:21]}  Rxe1 {[%clk 0:00:40]} 23. Bxc2 {[%clk 0:00:16]}  Rxf2 {[%clk 0:00:41]} 24. Kxf2 {[%clk 0:00:17]}  Re5 {[%clk 0:00:41]} 25. Rg1 {[%clk 0:00:14]}  Ra5 {[%clk 0:00:40]} 26. Bb1 {[%clk 0:00:12]}  Rb5 {[%clk 0:00:40]} 27. Bd3 {[%clk 0:00:11]}  Rd5 {[%clk 0:00:39]} 28. Ke3 {[%clk 0:00:09]}  Re5+ {[%clk 0:00:39]} 29. Kf4 {[%clk 0:00:09]}  Re7 {[%clk 0:00:37]} 30. Bc4 {[%clk 0:00:09]}  Kc7 {[%clk 0:00:37]} 31. Bg8 {[%clk 0:00:09]}  h6 {[%clk 0:00:35]} 32. Be6 {[%clk 0:00:09]}  b5 {[%clk 0:00:35]} 33. Ke4 {[%clk 0:00:08]}  Kb6 {[%clk 0:00:34]} 34. Rg2 {[%clk 0:00:07]}  Ra7 {[%clk 0:00:35]} 35. Kf4 {[%clk 0:00:07]}  c5 {[%clk 0:00:35]} 36. Ke4 {[%clk 0:00:06]}  c4 {[%clk 0:00:34]} 37. Kd4 {[%clk 0:00:06]}  Kc6 {[%clk 0:00:31]} 38. Bxc4 {[%clk 0:00:06]}  Ra4 {[%clk 0:00:24]} 39. Rc2 {[%clk 0:00:02]}  Kd6 {[%clk 0:00:24]} 40. Kd3 {[%clk 0:00:01]}  bxc4+ {[%clk 0:00:24]} 41. Kd4 {[%clk 0:00:01]}  h5 {[%clk 0:00:22]} 42. h4 {[%clk 0:00:01]}  Ke7 {[%clk 0:00:22]} 43. Rxc4 {[%clk 0:00:01]}  Rxa2 {[%clk 0:00:22]} 44. Rc7+ {[%clk 0:00:02]}  Kf8 {[%clk 0:00:22]} 45. Rc8+ {[%clk 0:00:02]}  Kf7 {[%clk 0:00:23]} 46. Rc7+ {[%clk 0:00:03]}  Kg8 {[%clk 0:00:23]} 47. Kd5 {[%clk 0:00:04]}  Re2 {[%clk 0:00:23]} 48. Kd6 {[%clk 0:00:03]}  Re5 {[%clk 0:00:23]} 49. Rc8+ {[%clk 0:00:04]}  Kh7 {[%clk 0:00:23]} 50. Rc5 {[%clk 0:00:04]}  Re4 {[%clk 0:00:24]} 51. Rd5 {[%clk 0:00:04]}  Rxh4 {[%clk 0:00:23]} 52. Ke6 {[%clk 0:00:05]}  Re4+ {[%clk 0:00:24]} 53. Kf7 {[%clk 0:00:05]}  Re5 {[%clk 0:00:24]} 54. Rd1 {[%clk 0:00:05]}  Rxf5 {[%clk 0:00:24]} 55. Rg1 {[%clk 0:00:06]}  Rg5 {[%clk 0:00:24]} 56. Rh1 {[%clk 0:00:06]}  f5 {[%clk 0:00:25]} 57. Ke6 {[%clk 0:00:06]}  Kg6 {[%clk 0:00:25]} 58. Rh4 {[%clk 0:00:06]}  Rg4 {[%clk 0:00:25]} 59. Rh1 {[%clk 0:00:06]}  Re4+ {[%clk 0:00:25]} 0-1


[Site "https://www.chess.com"]

[Event "Titled Tuesday Blitz May 18 2021"]
[White "Sasikiran, Krishnan"]
[Black "Morefield, Jason"]
[WhiteFideId "5004985"]
[BlackFideId "30920825"]
[WhiteElo "2552"]
[BlackElo "2171"]
[Result "1-0"]
[Round "08"]
[TimeControl "180+1"]
[Date "2021.05.18"]
[WhiteClock "0:00:22"]
[BlackClock "0:00:03"]

1. e4 {[%clk 0:03:00]}  c5 {[%clk 0:02:59]} 2. Nf3 {[%clk 0:03:00]}  d6 {[%clk 0:02:59]} 3. d4 {[%clk 0:03:00]}  cxd4 {[%clk 0:03:00]} 4. Nxd4 {[%clk 0:03:01]}  Nf6 {[%clk 0:03:00]} 5. Nc3 {[%clk 0:03:02]}  Nc6 {[%clk 0:03:00]} 6. Bg5 {[%clk 0:03:01]}  e6 {[%clk 0:03:00]} 7. Qd2 {[%clk 0:03:02]}  Be7 {[%clk 0:02:57]} 8. O-O-O {[%clk 0:03:00]}  a6 {[%clk 0:02:52]} 9. h4 {[%clk 0:02:56]}  Nxd4 {[%clk 0:02:45]} 10. Qxd4 {[%clk 0:02:55]}  Bd7 {[%clk 0:02:45]} 11. Kb1 {[%clk 0:02:46]}  Rc8 {[%clk 0:02:39]} 12. f3 {[%clk 0:02:45]}  h5 {[%clk 0:02:38]} 13. Qd2 {[%clk 0:02:37]}  b5 {[%clk 0:02:30]} 14. Ne2 {[%clk 0:02:37]}  Qc7 {[%clk 0:02:24]} 15. Nd4 {[%clk 0:02:31]}  Rb8 {[%clk 0:01:58]} 16. Bd3 {[%clk 0:02:28]}  a5 {[%clk 0:01:53]} 17. Rhe1 {[%clk 0:02:27]}  b4 {[%clk 0:01:51]} 18. f4 {[%clk 0:02:26]}  a4 {[%clk 0:01:45]} 19. e5 {[%clk 0:02:25]}  dxe5 {[%clk 0:01:37]} 20. fxe5 {[%clk 0:02:24]}  Nd5 {[%clk 0:01:35]} 21. Bxe7 {[%clk 0:02:24]}  Kxe7 {[%clk 0:01:13]} 22. Qg5+ {[%clk 0:02:17]}  Kf8 {[%clk 0:01:13]} 23. Be4 {[%clk 0:02:09]}  Rh6 {[%clk 0:01:03]} 24. Bxd5 {[%clk 0:02:09]}  exd5 {[%clk 0:01:04]} 25. Rf1 {[%clk 0:02:07]}  Kg8 {[%clk 0:01:02]} 26. Rf2 {[%clk 0:01:53]}  Rg6 {[%clk 0:00:55]} 27. Qf4 {[%clk 0:01:52]}  Bg4 {[%clk 0:00:47]} 28. Rdf1 {[%clk 0:01:42]}  Rb7 {[%clk 0:00:43]} 29. Qe3 {[%clk 0:01:35]}  Qc5 {[%clk 0:00:27]} 30. Re1 {[%clk 0:01:20]}  Rgb6 {[%clk 0:00:26]} 31. Rd2 {[%clk 0:01:14]}  Qe7 {[%clk 0:00:23]} 32. g3 {[%clk 0:01:12]}  b3 {[%clk 0:00:22]} 33. cxb3 {[%clk 0:01:08]}  axb3 {[%clk 0:00:23]} 34. axb3 {[%clk 0:01:06]}  Qd7 {[%clk 0:00:20]} 35. Qd3 {[%clk 0:01:04]}  Rb4 {[%clk 0:00:18]} 36. Qc3 {[%clk 0:00:58]}  Rxd4 {[%clk 0:00:17]} 37. Qxd4 {[%clk 0:00:55]}  Bf5+ {[%clk 0:00:16]} 38. Kc1 {[%clk 0:00:54]}  Rc7+ {[%clk 0:00:16]} 39. Kd1 {[%clk 0:00:54]}  Bg4+ {[%clk 0:00:16]} 40. Ree2 {[%clk 0:00:54]}  Qb5 {[%clk 0:00:15]} 41. Ke1 {[%clk 0:00:47]}  Bxe2 {[%clk 0:00:11]} 42. Rxe2 {[%clk 0:00:47]}  Qxb3 {[%clk 0:00:11]} 43. Kf2 {[%clk 0:00:47]}  Rc2 {[%clk 0:00:09]} 44. Rxc2 {[%clk 0:00:43]}  Qxc2+ {[%clk 0:00:10]} 45. Kf3 {[%clk 0:00:42]}  Qb3+ {[%clk 0:00:09]} 46. Kf4 {[%clk 0:00:42]}  g6 {[%clk 0:00:05]} 47. Qc3 {[%clk 0:00:36]}  Qa4+ {[%clk 0:00:03]} 48. b4 {[%clk 0:00:34]}  Qd1 {[%clk 0:00:03]} 49. Kg5 {[%clk 0:00:31]}  Qg4+ {[%clk 0:00:02]} 50. Kh6 {[%clk 0:00:28]}  Qd7 {[%clk 0:00:02]} 51. Qd4 {[%clk 0:00:24]}  Qd8 {[%clk 0:00:03]} 52. b5 {[%clk 0:00:22]}  Qf8+ {[%clk 0:00:03]} 53. Kg5 {[%clk 0:00:22]}  Qe7+ {[%clk 0:00:04]} 54. Kf4 {[%clk 0:00:23]}  Qd7 {[%clk 0:00:04]} 55. b6 {[%clk 0:00:23]}  Qc6 {[%clk 0:00:04]} 56. Qb4 {[%clk 0:00:21]}  Qc1+ {[%clk 0:00:05]} 57. Kf3 {[%clk 0:00:21]}  Qf1+ {[%clk 0:00:05]} 58. Ke3 {[%clk 0:00:20]}  Qg1+ {[%clk 0:00:05]} 59. Kd3 {[%clk 0:00:20]}  Qd1+ {[%clk 0:00:05]} 60. Ke3 {[%clk 0:00:19]}  Qc1+ {[%clk 0:00:05]} 61. Kd4 {[%clk 0:00:19]}  Qd1+ {[%clk 0:00:03]} 62. Kc5 {[%clk 0:00:19]}  Qc2+ {[%clk 0:00:04]} 63. Kd6 {[%clk 0:00:19]}  Qc8 {[%clk 0:00:03]} 64. b7 {[%clk 0:00:20]}  Qb8+ {[%clk 0:00:04]} 65. Kxd5 {[%clk 0:00:20]}  Kg7 {[%clk 0:00:03]} 66. Kc6 {[%clk 0:00:20]}  Qd8 {[%clk 0:00:03]} 67. Qd6 {[%clk 0:00:20]}  Qa5 {[%clk 0:00:03]} 68. b8=Q {[%clk 0:00:20]}  Qa4+ {[%clk 0:00:04]} 69. Kc7 {[%clk 0:00:21]}  Qa5+ {[%clk 0:00:04]} 70. Kd7 {[%clk 0:00:21]}  Qa4+ {[%clk 0:00:03]} 71. Ke7 {[%clk 0:00:22]} 1-0


[Site "https://www.chess.com"]

[Event "Titled Tuesday Blitz May 18 2021"]
[White "Zhigalko, Sergei"]
[Black "Timmermans, Mark"]
[WhiteFideId "13502956"]
[BlackFideId "1026399"]
[WhiteElo "2662"]
[BlackElo "2460"]
[Result "0-1"]
[Round "08"]
[TimeControl "180+1"]
[Date "2021.05.18"]
[WhiteClock "0:00:02"]
[BlackClock "0:00:12"]

1. e4 {[%clk 0:03:00]}  e5 {[%clk 0:02:57]} 2. Nf3 {[%clk 0:03:01]}  Nc6 {[%clk 0:02:56]} 3. Bc4 {[%clk 0:03:01]}  Nf6 {[%clk 0:02:56]} 4. d3 {[%clk 0:03:00]}  Be7 {[%clk 0:02:54]} 5. O-O {[%clk 0:03:00]}  O-O {[%clk 0:02:55]} 6. Nbd2 {[%clk 0:03:00]}  d6 {[%clk 0:02:50]} 7. c3 {[%clk 0:03:00]}  Kh8 {[%clk 0:02:43]} 8. Re1 {[%clk 0:02:56]}  Ng8 {[%clk 0:02:43]} 9. d4 {[%clk 0:02:57]}  exd4 {[%clk 0:02:42]} 10. cxd4 {[%clk 0:02:52]}  Bg4 {[%clk 0:02:39]} 11. h3 {[%clk 0:02:51]}  Bh5 {[%clk 0:02:39]} 12. Qc2 {[%clk 0:02:35]}  Bg6 {[%clk 0:02:29]} 13. Qd1 {[%clk 0:02:19]}  Nf6 {[%clk 0:01:53]} 14. Bb3 {[%clk 0:02:00]}  d5 {[%clk 0:01:49]} 15. e5 {[%clk 0:01:48]}  Ne4 {[%clk 0:01:46]} 16. Bc2 {[%clk 0:01:48]}  f5 {[%clk 0:01:43]} 17. Nb3 {[%clk 0:01:28]}  Nb4 {[%clk 0:01:33]} 18. Bb1 {[%clk 0:01:20]}  a5 {[%clk 0:01:33]} 19. a3 {[%clk 0:01:18]}  Nc6 {[%clk 0:01:33]} 20. Bf4 {[%clk 0:01:18]}  Qd7 {[%clk 0:01:29]} 21. Qd3 {[%clk 0:01:05]}  Nd8 {[%clk 0:01:28]} 22. Bc2 {[%clk 0:00:32]}  Ne6 {[%clk 0:01:25]} 23. Bh2 {[%clk 0:00:33]}  f4 {[%clk 0:01:20]} 24. Qe2 {[%clk 0:00:30]}  Bh5 {[%clk 0:00:38]} 25. Bxe4 {[%clk 0:00:28]}  dxe4 {[%clk 0:00:38]} 26. Qxe4 {[%clk 0:00:29]}  a4 {[%clk 0:00:36]} 27. Nbd2 {[%clk 0:00:28]}  c6 {[%clk 0:00:31]} 28. Rac1 {[%clk 0:00:25]}  Ra5 {[%clk 0:00:29]} 29. Rc4 {[%clk 0:00:24]}  Rb5 {[%clk 0:00:28]} 30. Qc2 {[%clk 0:00:20]}  Rd5 {[%clk 0:00:26]} 31. Rxa4 {[%clk 0:00:15]}  b5 {[%clk 0:00:26]} 32. Ra6 {[%clk 0:00:15]}  Nxd4 {[%clk 0:00:25]} 33. Nxd4 {[%clk 0:00:13]}  Rxd4 {[%clk 0:00:26]} 34. Nf1 {[%clk 0:00:07]}  Rc4 {[%clk 0:00:26]} 35. Qd2 {[%clk 0:00:04]}  Qb7 {[%clk 0:00:24]} 36. Qa5 {[%clk 0:00:05]}  Ra4 {[%clk 0:00:21]} 37. Rb6 {[%clk 0:00:03]}  Qc7 {[%clk 0:00:17]} 38. Qxa4 {[%clk 0:00:01]}  bxa4 {[%clk 0:00:17]} 39. Ra6 {[%clk 0:00:01]}  Bc5 {[%clk 0:00:17]} 40. Rxa4 {[%clk 0:00:01]}  f3 {[%clk 0:00:15]} 41. e6 {[%clk 0:00:01]}  Bxf2+ {[%clk 0:00:13]} 42. Kxf2 {[%clk 0:00:01]}  fxg2+ {[%clk 0:00:14]} 43. Kxg2 {[%clk 0:00:01]}  Bf3+ {[%clk 0:00:13]} 44. Kg1 {[%clk 0:00:01]}  Qb6+ {[%clk 0:00:13]} 45. Re3 {[%clk 0:00:02]}  Qxb2 {[%clk 0:00:13]} 46. e7 {[%clk 0:00:02]}  Qg2# {[%clk 0:00:12]} 0-1


[Site "https://www.chess.com"]

[Event "Titled Tuesday Blitz May 18 2021"]
[White "Baklan, Vladimir"]
[Black "Araujo Sanchez, Josue"]
[WhiteFideId "14102196"]
[BlackFideId "6416896"]
[WhiteElo "2596"]
[BlackElo "2140"]
[Result "1-0"]
[Round "09"]
[TimeControl "180+1"]
[Date "2021.05.18"]
[WhiteClock "0:00:39"]
[BlackClock "0:00:04"]

1. e4 {[%clk 0:03:00]}  c6 {[%clk 0:02:58]} 2. d4 {[%clk 0:03:00]}  d5 {[%clk 0:02:56]} 3. e5 {[%clk 0:03:00]}  Bf5 {[%clk 0:02:54]} 4. Be2 {[%clk 0:03:00]}  e6 {[%clk 0:02:53]} 5. Nf3 {[%clk 0:03:00]}  Nd7 {[%clk 0:02:52]} 6. O-O {[%clk 0:02:59]}  h6 {[%clk 0:02:49]} 7. c3 {[%clk 0:02:58]}  Ne7 {[%clk 0:02:48]} 8. Na3 {[%clk 0:02:58]}  c5 {[%clk 0:02:48]} 9. dxc5 {[%clk 0:02:57]}  Nc6 {[%clk 0:02:48]} 10. b4 {[%clk 0:02:54]}  a5 {[%clk 0:02:12]} 11. Nb5 {[%clk 0:02:51]}  axb4 {[%clk 0:02:10]} 12. cxb4 {[%clk 0:02:51]}  Nxb4 {[%clk 0:02:10]} 13. Nfd4 {[%clk 0:02:49]}  Nxc5 {[%clk 0:01:47]} 14. Nxf5 {[%clk 0:02:43]}  exf5 {[%clk 0:01:48]} 15. a3 {[%clk 0:02:43]}  Nc6 {[%clk 0:01:45]} 16. Qxd5 {[%clk 0:02:39]}  Ne6 {[%clk 0:01:23]} 17. Bf3 {[%clk 0:02:00]}  Qxd5 {[%clk 0:01:07]} 18. Bxd5 {[%clk 0:01:54]}  O-O-O {[%clk 0:01:08]} 19. Ba2 {[%clk 0:01:44]}  Ncd4 {[%clk 0:00:42]} 20. Nxd4 {[%clk 0:01:39]}  Rxd4 {[%clk 0:00:43]} 21. Be3 {[%clk 0:01:39]}  Rd7 {[%clk 0:00:42]} 22. Ba7 {[%clk 0:01:32]}  Be7 {[%clk 0:00:32]} 23. Rfb1 {[%clk 0:01:21]}  Rc7 {[%clk 0:00:21]} 24. g3 {[%clk 0:01:18]}  Rd8 {[%clk 0:00:21]} 25. Bb6 {[%clk 0:01:17]}  Rd2 {[%clk 0:00:18]} 26. Bxe6+ {[%clk 0:01:14]}  fxe6 {[%clk 0:00:17]} 27. Bxc7 {[%clk 0:01:14]}  Kxc7 {[%clk 0:00:18]} 28. Rc1+ {[%clk 0:01:11]}  Kb8 {[%clk 0:00:18]} 29. a4 {[%clk 0:01:07]}  g5 {[%clk 0:00:16]} 30. Rab1 {[%clk 0:01:03]}  Ra2 {[%clk 0:00:14]} 31. Rc4 {[%clk 0:01:01]}  Re2 {[%clk 0:00:11]} 32. a5 {[%clk 0:00:56]}  Ra2 {[%clk 0:00:09]} 33. Rb6 {[%clk 0:00:50]}  Rxa5 {[%clk 0:00:07]} 34. Rxe6 {[%clk 0:00:50]}  Bc5 {[%clk 0:00:08]} 35. Rc2 {[%clk 0:00:49]}  f4 {[%clk 0:00:07]} 36. gxf4 {[%clk 0:00:41]}  gxf4 {[%clk 0:00:08]} 37. Rf6 {[%clk 0:00:41]}  Ra4 {[%clk 0:00:04]} 38. Rxc5 {[%clk 0:00:39]} 1-0


[Site "https://www.chess.com"]